Department Family,Date Paid,Expense Type,Expense Area,Supplier,Transaction Number,Amount,Vat Inclusive,
Crown Prosecution Service ,02/12/22,Property management fees,Estate and FM: Programme,Government Property Agency London,00000001/22239,"6,984.76",Y,
Crown Prosecution Service ,02/12/22,Lease liability non current lease payments,Balance Sheet,Government Property Agency London,00000001/22239,"35,100.00",,
Crown Prosecution Service ,02/12/22,Landlord service charge,Estate and FM: Programme,Government Property Agency London,00000001/22239,"16,347.55",,
Crown Prosecution Service ,02/12/22,National non domestic rates,Estate and FM: Programme,Government Property Agency London,00000001/22239,"15,104.00",,
Crown Prosecution Service ,02/12/22,Property management fees,Estate and FM: Programme,Government Property Agency London,00000001/22240,"6,106.30",Y,
Crown Prosecution Service ,02/12/22,National non domestic rates,Estate and FM: Programme,Government Property Agency London,00000001/22240,"5,383.50",,
Crown Prosecution Service ,02/12/22,Landlord service charge,Estate and FM: Programme,Government Property Agency London,00000001/22240,"10,508.37",,
Crown Prosecution Service ,02/12/22,Lease liability non current lease payments,Balance Sheet,Government Property Agency London,00000001/22240,"12,000.00",,
Crown Prosecution Service ,02/12/22,Property management fees,Estate and FM: Programme,Government Property Agency London,00000001/22241,"9,831.29",Y,
Crown Prosecution Service ,02/12/22,National non domestic rates,Estate and FM: Programme,Government Property Agency London,00000001/22241,"34,880.00",,
Crown Prosecution Service ,02/12/22,Landlord service charge,Estate and FM: Programme,Government Property Agency London,00000001/22241,"30,171.96",,
Crown Prosecution Service ,02/12/22,Lease liability non current lease payments,Balance Sheet,Government Property Agency London,00000001/22241,"80,407.80",,
Crown Prosecution Service ,02/12/22,Property management fees,Estate and FM: Programme,Government Property Agency London,00000001/22243,"13,534.94",Y,
Crown Prosecution Service ,02/12/22,Landlord service charge,Estate and FM: Programme,Government Property Agency London,00000001/22243,"50,122.06",,
Crown Prosecution Service ,02/12/22,National non domestic rates,Estate and FM: Programme,Government Property Agency London,00000001/22243,"38,400.00",,
Crown Prosecution Service ,02/12/22,Lease liability non current lease payments,Balance Sheet,Government Property Agency London,00000001/22243,"106,451.25",,
Crown Prosecution Service ,02/12/22,Property management fees,Estate and FM: Programme,Government Property Agency London,00000001/22244,"10,053.73",Y,
Crown Prosecution Service ,02/12/22,Lease liability non current lease payments,Balance Sheet,Government Property Agency London,00000001/22244,"23,429.25",,
Crown Prosecution Service ,02/12/22,National non domestic rates,Estate and FM: Programme,Government Property Agency London,00000001/22244,"17,645.96",,
Crown Prosecution Service ,02/12/22,Landlord service charge,Estate and FM: Programme,Government Property Agency London,00000001/22244,"11,393.44",,
Crown Prosecution Service ,02/12/22,Property management fees,Estate and FM: Programme,Government Property Agency London,00000001/22249,"6,033.70",Y,
Crown Prosecution Service ,02/12/22,National non domestic rates,Estate and FM: Programme,Government Property Agency London,00000001/22249,"5,177.13",,
Crown Prosecution Service ,02/12/22,Landlord service charge,Estate and FM: Programme,Government Property Agency London,00000001/22249,"3,695.36",,
Crown Prosecution Service ,02/12/22,Lease liability non current lease payments,Balance Sheet,Government Property Agency London,00000001/22249,"11,687.50",,
Crown Prosecution Service ,02/12/22,Property management fees,Estate and FM: Programme,Government Property Agency London,00000001/22251,"12,037.72",Y,
Crown Prosecution Service ,02/12/22,Landlord service charge,Estate and FM: Programme,Government Property Agency London,00000001/22251,"16,111.24",,
Crown Prosecution Service ,02/12/22,Lease liability non current lease payments,Balance Sheet,Government Property Agency London,00000001/22251,"87,000.00",,
Crown Prosecution Service ,02/12/22,National non domestic rates,Estate and FM: Programme,Government Property Agency London,00000001/22251,"25,472.00",,
Crown Prosecution Service ,02/12/22,Property management fees,Estate and FM: Programme,Government Property Agency London,00000001/22252,"7,964.86",Y,
Crown Prosecution Service ,02/12/22,Short term leases from 2 to 12 months: Property,Estate and FM: Programme,Government Property Agency London,00000001/22252,"48,123.00",,
Crown Prosecution Service ,02/12/22,Landlord service charge,Estate and FM: Programme,Government Property Agency London,00000001/22252,"22,305.61",,
Crown Prosecution Service ,02/12/22,National non domestic rates,Estate and FM: Programme,Government Property Agency London,00000001/22252,"15,744.00",,
Crown Prosecution Service ,02/12/22,Property management fees,Estate and FM: Programme,Government Property Agency London,00000001/22255,"7,472.48",Y,
Crown Prosecution Service ,02/12/22,Landlord service charge,Estate and FM: Programme,Government Property Agency London,00000001/22255,"4,654.18",,
Crown Prosecution Service ,02/12/22,National non domestic rates,Estate and FM: Programme,Government Property Agency London,00000001/22255,"6,202.23",,
Crown Prosecution Service ,02/12/22,Lease liability non current lease payments,Balance Sheet,Government Property Agency London,00000001/22255,"17,383.30",,
Crown Prosecution Service ,02/12/22,Property management fees,Estate and FM: Programme,Government Property Agency London,00000001/22257,"6,897.64",Y,
Crown Prosecution Service ,02/12/22,Lease liability non current lease payments,Balance Sheet,Government Property Agency London,00000001/22257,"69,372.10",,
Crown Prosecution Service ,02/12/22,Landlord service charge,Estate and FM: Programme,Government Property Agency London,00000001/22257,"8,221.30",,
Crown Prosecution Service ,02/12/22,National non domestic rates,Estate and FM: Programme,Government Property Agency London,00000001/22257,"22,986.00",,
Crown Prosecution Service ,02/12/22,Property management fees,Estate and FM: Programme,Government Property Agency London,00000001/22258,"6,059.10",Y,
Crown Prosecution Service ,02/12/22,National non domestic rates,Estate and FM: Programme,Government Property Agency London,00000001/22258,"7,104.00",,
Crown Prosecution Service ,02/12/22,Landlord service charge,Estate and FM: Programme,Government Property Agency London,00000001/22258,"8,605.72",,
Crown Prosecution Service ,02/12/22,Lease liability non current lease payments,Balance Sheet,Government Property Agency London,00000001/22258,"18,986.40",,
Crown Prosecution Service ,02/12/22,Property management fees,Estate and FM: Programme,Government Property Agency London,00000001/22259,"7,690.43",Y,
Crown Prosecution Service ,02/12/22,Landlord service charge,Estate and FM: Programme,Government Property Agency London,00000001/22259,"21,374.50",,
Crown Prosecution Service ,02/12/22,Lease liability non current lease payments,Balance Sheet,Government Property Agency London,00000001/22259,"74,220.00",,
Crown Prosecution Service ,02/12/22,National non domestic rates,Estate and FM: Programme,Government Property Agency London,00000001/22259,"21,856.25",,
Crown Prosecution Service ,02/12/22,Property management fees,Estate and FM: Programme,Government Property Agency London,00000001/22260,"8,966.74",Y,
Crown Prosecution Service ,02/12/22,National non domestic rates,Estate and FM: Programme,Government Property Agency London,00000001/22260,"17,408.00",,
Crown Prosecution Service ,02/12/22,Landlord service charge,Estate and FM: Programme,Government Property Agency London,00000001/22260,"17,516.34",,
Crown Prosecution Service ,02/12/22,Lease liability non current lease payments,Balance Sheet,Government Property Agency London,00000001/22260,"47,000.00",,
Crown Prosecution Service ,02/12/22,Property management fees,Estate and FM: Programme,Government Property Agency London,00000001/22261,"6,843.18",Y,
Crown Prosecution Service ,02/12/22,Lease liability non current lease payments,Balance Sheet,Government Property Agency London,00000001/22261,"32,778.00",,
Crown Prosecution Service ,02/12/22,Landlord service charge,Estate and FM: Programme,Government Property Agency London,00000001/22261,"15,970.00",,
Crown Prosecution Service ,02/12/22,National non domestic rates,Estate and FM: Programme,Government Property Agency London,00000001/22261,"8,017.93",,
Crown Prosecution Service ,02/12/22,Property management fees,Estate and FM: Programme,Government Property Agency London,00000001/22262,729.00,Y,
Crown Prosecution Service ,02/12/22,National non domestic rates,Estate and FM: Programme,Government Property Agency London,00000001/22262,"19,584.00",,
Crown Prosecution Service ,02/12/22,Accommodation rental costs (non-IFRS16),Estate and FM: Programme,Government Property Agency London,00000001/22262,"12,000.00",,
Crown Prosecution Service ,02/12/22,Property management fees,Estate and FM: Programme,Government Property Agency London,00000001/22263,"6,689.63",Y,
Crown Prosecution Service ,02/12/22,National non domestic rates,Estate and FM: Programme,Government Property Agency London,00000001/22263,"15,263.75",,
Crown Prosecution Service ,02/12/22,Landlord service charge,Estate and FM: Programme,Government Property Agency London,00000001/22263,"14,927.44",,
Crown Prosecution Service ,02/12/22,Lease liability non current lease payments,Balance Sheet,Government Property Agency London,00000001/22263,"51,967.50",,
Crown Prosecution Service ,02/12/22,Property management fees,Estate and FM: Programme,Government Property Agency London,00000001/22267,"7,917.66",Y,
Crown Prosecution Service ,02/12/22,National non domestic rates,Estate and FM: Programme,Government Property Agency London,00000001/22267,"29,440.00",,
Crown Prosecution Service ,02/12/22,Landlord service charge,Estate and FM: Programme,Government Property Agency London,00000001/22267,"71,853.66",,
Crown Prosecution Service ,02/12/22,Lease liability non current lease payments,Balance Sheet,Government Property Agency London,00000001/22267,"89,856.60",,
Crown Prosecution Service ,02/12/22,Property management fees,Estate and FM: Programme,Government Property Agency London,00000001/22268,"6,658.06",Y,
Crown Prosecution Service ,02/12/22,Lease liability non current lease payments,Balance Sheet,Government Property Agency London,00000001/22268,"26,640.00",,
Crown Prosecution Service ,02/12/22,National non domestic rates,Estate and FM: Programme,Government Property Agency London,00000001/22268,"9,280.00",,
Crown Prosecution Service ,02/12/22,Landlord service charge,Estate and FM: Programme,Government Property Agency London,00000001/22268,"17,912.63",,
Crown Prosecution Service ,02/12/22,Property management fees,Estate and FM: Programme,Government Property Agency London,00000001/22272,"15,535.94",Y,
Crown Prosecution Service ,02/12/22,Lease liability non current lease payments,Balance Sheet,Government Property Agency London,00000001/22272,"210,288.00",,
Crown Prosecution Service ,02/12/22,Landlord service charge,Estate and FM: Programme,Government Property Agency London,00000001/22272,"97,060.30",,
Crown Prosecution Service ,02/12/22,National non domestic rates,Estate and FM: Programme,Government Property Agency London,00000001/22272,"43,200.00",,
Crown Prosecution Service ,02/12/22,Property management fees,Estate and FM: Programme,Government Property Agency London,00000001/22274,"5,227.84",Y,
Crown Prosecution Service ,02/12/22,National non domestic rates,Estate and FM: Programme,Government Property Agency London,00000001/22274,"3,149.94",,
Crown Prosecution Service ,02/12/22,Lease liability non current lease payments,Balance Sheet,Government Property Agency London,00000001/22274,"8,750.00",,
Crown Prosecution Service ,02/12/22,Landlord service charge,Estate and FM: Programme,Government Property Agency London,00000001/22274,"10,287.39",,
Crown Prosecution Service ,02/12/22,Property management fees,Estate and FM: Programme,Government Property Agency London,00000001/22275,"3,794.25",Y,
Crown Prosecution Service ,02/12/22,Property management fees,Estate and FM: Administration,Government Property Agency London,00000001/22275,"3,794.24",Y,
Crown Prosecution Service ,02/12/22,Landlord service charge,Estate and FM: Programme,Government Property Agency London,00000001/22275,"17,916.99",,
Crown Prosecution Service ,02/12/22,National non domestic rates,Estate and FM: Administration,Government Property Agency London,00000001/22275,"8,316.16",,
Crown Prosecution Service ,02/12/22,Lease liability non current lease payments,Balance Sheet,Government Property Agency London,00000001/22275,"72,484.95",,
Crown Prosecution Service ,02/12/22,Landlord service charge,Estate and FM: Administration,Government Property Agency London,00000001/22275,"17,917.00",,
Crown Prosecution Service ,02/12/22,National non domestic rates,Estate and FM: Programme,Government Property Agency London,00000001/22275,"8,316.16",,
Crown Prosecution Service ,02/12/22,Property management fees,Estate and FM: Programme,Government Property Agency London,00000001/22280,"30,927.95",Y,
Crown Prosecution Service ,02/12/22,Property management fees,Estate and FM: Administration,Government Property Agency London,00000001/22280,"6,334.63",Y,
Crown Prosecution Service ,02/12/22,Landlord service charge,Estate and FM: Programme,Government Property Agency London,00000001/22280,"1,409,755.80",,
Crown Prosecution Service ,02/12/22,National non domestic rates,Estate and FM: Programme,Government Property Agency London,00000001/22280,"411,729.60",,
Crown Prosecution Service ,02/12/22,Lease liability non current lease payments,Balance Sheet,Government Property Agency London,00000001/22280,"1,201,346.27",,
Crown Prosecution Service ,02/12/22,Other accommodation costs,ILS Management Team,Government Property Agency London,00000001/22280,"4,225.98",,
Crown Prosecution Service ,02/12/22,Landlord service charge,Estate and FM: Administration,Government Property Agency London,00000001/22280,"289,610.72",,
Crown Prosecution Service ,02/12/22,National non domestic rates,Estate and FM: Administration,Government Property Agency London,00000001/22280,"84,330.15",,
Crown Prosecution Service ,02/12/22,Property management fees,Estate and FM: Programme,Government Property Agency London,00000001/22281,"14,832.82",Y,
Crown Prosecution Service ,02/12/22,Lease liability non current lease payments,Balance Sheet,Government Property Agency London,00000001/22281,"244,327.50",,
Crown Prosecution Service ,02/12/22,National non domestic rates,Estate and FM: Programme,Government Property Agency London,00000001/22281,"62,618.88",,
Crown Prosecution Service ,02/12/22,Landlord service charge,Estate and FM: Programme,Government Property Agency London,00000001/22281,"102,906.72",,
Crown Prosecution Service ,02/12/22,Property management fees,Estate and FM: Programme,Government Property Agency London,00000001/22285,"8,838.23",Y,
Crown Prosecution Service ,02/12/22,Landlord service charge,Estate and FM: Programme,Government Property Agency London,00000001/22285,"5,957.64",,
Crown Prosecution Service ,02/12/22,Lease liability non current lease payments,Balance Sheet,Government Property Agency London,00000001/22285,"66,875.00",,
Crown Prosecution Service ,02/12/22,National non domestic rates,Estate and FM: Programme,Government Property Agency London,00000001/22285,"24,576.00",,
Crown Prosecution Service ,02/12/22,Property management fees,Estate and FM: Programme,Government Property Agency London,00000001/22286,"5,903.02",Y,
Crown Prosecution Service ,02/12/22,Lease liability non current lease payments,Balance Sheet,Government Property Agency London,00000001/22286,"26,746.38",,
Crown Prosecution Service ,02/12/22,Landlord service charge,Estate and FM: Programme,Government Property Agency London,00000001/22287,"35,405.13",,
Crown Prosecution Service ,02/12/22,Crown Court Graduated Fee Scheme,Yorks and Humbs CC Legal,St Pauls Chambers Leeds,165512 JH,"35,942.10",Y,
Crown Prosecution Service ,02/12/22,External legal advice - Civil litigation,Other Corporate Programme Payments,Government Legal Department,518447,"89,461.82",Y,
Crown Prosecution Service ,05/12/22,Crown Court Graduated Fee Scheme,London North Complex Casework Unit,6 Kings Bench Walk- Chambers of D Fisher & D Perry,102313 PRA1,"40,714.80",Y,
Crown Prosecution Service ,05/12/22,Crown Court Graduated Fee Scheme,East Midlands Crown Court Section,Seven Bedford Row,194746 - ga,"38,071.12",Y,
Crown Prosecution Service ,05/12/22,Crown Court Graduated Fee Scheme,Thames Chiltern Crown Court Unit,23 Essex Street Chambers,195622-ALB,"42,798.48",Y,
Crown Prosecution Service ,05/12/22,Crown Court Graduated Fee Scheme,Yorks and Humbs CC Legal,New Park Court Chambers Leeds,367252/AMKC,"47,528.34",Y,
Crown Prosecution Service ,05/12/22,External Training,PF Operational HR Costs,Cabinet Office RM Shared Services,3823791,"22,500.00",,
Crown Prosecution Service ,05/12/22,Recoverable VAT control,Balance Sheet,Cabinet Office RM Shared Services,3823791,"4,500.00",Y,
Crown Prosecution Service ,06/12/22,Recoverable VAT control,Balance Sheet,Trustmarque Solutions Ltd,2352975,"11,526.00",Y,
Crown Prosecution Service ,06/12/22,IT non capital software licences,Legal Reference and ICT Licenses,Trustmarque Solutions Ltd,2352975,"57,630.01",,
Crown Prosecution Service ,06/12/22,Apprenticeship Levy payments Permanent,Other Corporate Admin Payments,HM Revenue and Customs,948PB000021422308,"7,950.66",,
Crown Prosecution Service ,06/12/22,Apprenticeship Levy payments Permanent,Other Corporate Programme Payments,HM Revenue and Customs,948PB000021422308,"124,560.34",,
Crown Prosecution Service ,07/12/22,Other publicity and media costs,Corporate Communication,YouGov Plc London,INV230660a,"29,325.00",Y,
Crown Prosecution Service ,08/12/22,Advice/PreSending Very High Cost Cases Full Scheme,Mersey Cheshire Complex Casework Unit,Harrington Street Chambers,1096572/SDS35,"26,389.76",Y,
Crown Prosecution Service ,08/12/22,Other Staff Costs,Other Corporate Admin Payments,Reward Gateway (UK) Ltd,UK072321SI,"30,000.00",,
Crown Prosecution Service ,09/12/22,UK National rail travel,CFO Financial Reporting,Clarity Travel Management,CPSHQ041222,135.90,,
Crown Prosecution Service ,09/12/22,UK National rail travel,Central Operational Training,Clarity Travel Management,CPSHQ041222,"1,378.75",,
Crown Prosecution Service ,09/12/22,UK Hotels,DTUS,Clarity Travel Management,CPSHQ041222,144.00,Y,
Crown Prosecution Service ,09/12/22,UK Air travel,Chief Finance Officer,Clarity Travel Management,CPSHQ041222,291.45,,
Crown Prosecution Service ,09/12/22,UK National rail travel,Corporate Communication,Clarity Travel Management,CPSHQ041222,838.10,,
Crown Prosecution Service ,09/12/22,UK National rail travel,PF HR Business Management,Clarity Travel Management,CPSHQ041222,122.20,,
Crown Prosecution Service ,09/12/22,UK National rail travel,Permanent Transfer Costs,Clarity Travel Management,CPSHQ041222,174.10,,
Crown Prosecution Service ,09/12/22,UK National rail travel,DID DTS Technology,Clarity Travel Management,CPSHQ041222,795.00,,
Crown Prosecution Service ,09/12/22,UK National rail travel,Operational Business Support,Clarity Travel Management,CPSHQ041222,664.80,,
Crown Prosecution Service ,09/12/22,UK National rail travel,DID Operational Process,Clarity Travel Management,CPSHQ041222,254.10,,
Crown Prosecution Service ,09/12/22,UK National rail travel,Operational Change,Clarity Travel Management,CPSHQ041222,579.70,,
Crown Prosecution Service ,09/12/22,UK National rail travel,PF Resourcing,Clarity Travel Management,CPSHQ041222,414.40,,
Crown Prosecution Service ,09/12/22,UK National rail travel,PF HR Business Partnering,Clarity Travel Management,CPSHQ041222,"1,728.05",,
Crown Prosecution Service ,09/12/22,UK National rail travel,Director of Legal Services,Clarity Travel Management,CPSHQ041222,157.60,,
Crown Prosecution Service ,09/12/22,UK National rail travel,PF Learning and Development General,Clarity Travel Management,CPSHQ041222,"1,070.50",,
Crown Prosecution Service ,09/12/22,UK National rail travel,Compliance and Assurance,Clarity Travel Management,CPSHQ041222,44.50,,
Crown Prosecution Service ,09/12/22,UK National rail travel,DID Central Leadership Team,Clarity Travel Management,CPSHQ041222,771.30,,
Crown Prosecution Service ,09/12/22,UK National rail travel,Strategy and Policy,Clarity Travel Management,CPSHQ041222,"2,616.55",,
Crown Prosecution Service ,09/12/22,UK National rail travel,CFO Finance Operations,Clarity Travel Management,CPSHQ041222,279.90,,
Crown Prosecution Service ,09/12/22,UK National rail travel,DID DTS Change,Clarity Travel Management,CPSHQ041222,641.30,,
Crown Prosecution Service ,09/12/22,UK National rail travel,Chief Finance Officer,Clarity Travel Management,CPSHQ041222,88.30,,
Crown Prosecution Service ,09/12/22,UK National rail travel,Operational Performance,Clarity Travel Management,CPSHQ041222,376.60,,
Crown Prosecution Service ,09/12/22,Overseas Air travel,Private Office,Clarity Travel Management,CPSHQ041222,97.20,,
Crown Prosecution Service ,09/12/22,UK National rail travel,DID Security and Information,Clarity Travel Management,CPSHQ041222,"1,579.50",,
Crown Prosecution Service ,09/12/22,UK National rail travel,Central Legal Training Team,Clarity Travel Management,CPSHQ041222,"1,120.80",,
Crown Prosecution Service ,09/12/22,UK National rail travel,PF People and Business Change,Clarity Travel Management,CPSHQ041222,"1,306.45",,
Crown Prosecution Service ,09/12/22,UK National rail travel,Court Business Unit,Clarity Travel Management,CPSHQ041222,574.10,,
Crown Prosecution Service ,09/12/22,UK National rail travel,DTUS,Clarity Travel Management,CPSHQ041222,110.60,,
Crown Prosecution Service ,09/12/22,UK National rail travel,PF Analytics and Workforce Plan,Clarity Travel Management,CPSHQ041222,62.90,,
Crown Prosecution Service ,09/12/22,UK National rail travel,Press Office,Clarity Travel Management,CPSHQ041222,365.00,,
Crown Prosecution Service ,09/12/22,UK Hotels,CFO Finance Operations,Clarity Travel Management,CPSHQ041222,133.00,Y,
Crown Prosecution Service ,09/12/22,UK Hotels,CFO Commercial,Clarity Travel Management,CPSHQ041222,355.16,Y,
Crown Prosecution Service ,09/12/22,UK Hotels,Director of Legal Services,Clarity Travel Management,CPSHQ041222,321.00,Y,
Crown Prosecution Service ,09/12/22,UK Hotels,DID Central Leadership Team,Clarity Travel Management,CPSHQ041222,525.40,Y,
Crown Prosecution Service ,09/12/22,UK Hotels,PF Learning and Development General,Clarity Travel Management,CPSHQ041222,"1,258.20",Y,
Crown Prosecution Service ,09/12/22,UK Hotels,Permanent Transfer Costs,Clarity Travel Management,CPSHQ041222,399.78,Y,
Crown Prosecution Service ,09/12/22,UK Hotels,Court Business Unit,Clarity Travel Management,CPSHQ041222,958.72,Y,
Crown Prosecution Service ,09/12/22,UK Hotels,PF Analytics and Workforce Plan,Clarity Travel Management,CPSHQ041222,80.00,Y,
Crown Prosecution Service ,09/12/22,UK Hotels,DID DTS Technology,Clarity Travel Management,CPSHQ041222,"4,161.35",Y,
Crown Prosecution Service ,09/12/22,UK Hotels,Press Office,Clarity Travel Management,CPSHQ041222,144.00,Y,
Crown Prosecution Service ,09/12/22,UK Hotels,PF HR Business Management,Clarity Travel Management,CPSHQ041222,220.30,Y,
Crown Prosecution Service ,09/12/22,UK Hotels,Strategy and Policy,Clarity Travel Management,CPSHQ041222,289.00,Y,
Crown Prosecution Service ,09/12/22,UK Hotels,DID DTS Change,Clarity Travel Management,CPSHQ041222,"1,716.77",Y,
Crown Prosecution Service ,09/12/22,UK Hotels,PF HR Business Partnering,Clarity Travel Management,CPSHQ041222,448.38,Y,
Crown Prosecution Service ,09/12/22,UK Hotels,DID Security and Information,Clarity Travel Management,CPSHQ041222,"1,164.22",Y,
Crown Prosecution Service ,09/12/22,UK Hotels,Operational Performance,Clarity Travel Management,CPSHQ041222,266.20,Y,
Crown Prosecution Service ,09/12/22,UK Hotels,Private Office,Clarity Travel Management,CPSHQ041222,453.00,Y,
Crown Prosecution Service ,09/12/22,UK Hotels,PF People and Business Change,Clarity Travel Management,CPSHQ041222,842.26,Y,
Crown Prosecution Service ,12/12/22,IT services,DTS Programme Project Cost,Vodafone Ltd formerly Cable and Wireless Milton Keynes,4026087,"148,031.28",Y,
Crown Prosecution Service ,12/12/22,IT services,DTS Programme Project Cost,Vodafone Ltd formerly Cable and Wireless Milton Keynes,4026095,"140,067.35",Y,
Crown Prosecution Service ,12/12/22,IT services,Estate and FM: Programme,Vodafone Ltd formerly Cable and Wireless Milton Keynes,4026441,"31,736.82",Y,
Crown Prosecution Service ,12/12/22,IT services,Other IT costs,Lumen Technologies UK Ltd,620021329/1117484,"45,600.97",Y,
Crown Prosecution Service ,12/12/22,IT services,PSN Services Contract,Lumen Technologies UK Ltd,620035105/1120079,"117,639.82",,
Crown Prosecution Service ,12/12/22,Recoverable VAT control,Balance Sheet,Lumen Technologies UK Ltd,620035105/1120079,"23,527.96",Y,
Crown Prosecution Service ,12/12/22,IT services,DTS Programme Project Cost,Lumen Technologies UK Ltd,620502551/1120797,"37,896.97",Y,
Crown Prosecution Service ,12/12/22,IT services,Estate and FM: Programme,Lumen Technologies UK Ltd,620502551/1120797,"21,863.04",Y,
Crown Prosecution Service ,12/12/22,Variable lease payment expenses IT and Equipment,Print Contract,Konica Minolta Business Solutions Limited,Bulk202205,"120,999.52",,
Crown Prosecution Service ,12/12/22,Recoverable VAT control,Balance Sheet,Konica Minolta Business Solutions Limited,Bulk202205,"24,199.90",Y,
Crown Prosecution Service ,12/12/22,Variable lease payment expenses IT and Equipment,Print Contract,Konica Minolta Business Solutions Limited,Bulk202206,"145,585.06",,
Crown Prosecution Service ,12/12/22,Recoverable VAT control,Balance Sheet,Konica Minolta Business Solutions Limited,Bulk202206,"29,117.01",Y,
Crown Prosecution Service ,12/12/22,Recoverable VAT control,Balance Sheet,Konica Minolta Business Solutions Limited,Bulk202207,"17,910.73",Y,
Crown Prosecution Service ,12/12/22,Variable lease payment expenses IT and Equipment,Print Contract,Konica Minolta Business Solutions Limited,Bulk202207,"89,553.65",,
Crown Prosecution Service ,12/12/22,Variable lease payment expenses IT and Equipment,Print Contract,Konica Minolta Business Solutions Limited,Bulk202208,"122,957.03",,
Crown Prosecution Service ,12/12/22,Recoverable VAT control,Balance Sheet,Konica Minolta Business Solutions Limited,Bulk202208,"24,591.40",Y,
Crown Prosecution Service ,12/12/22,Variable lease payment expenses IT and Equipment,Print Contract,Konica Minolta Business Solutions Limited,Bulk202209,"113,466.84",,
Crown Prosecution Service ,12/12/22,Recoverable VAT control,Balance Sheet,Konica Minolta Business Solutions Limited,Bulk202209,"22,693.36",Y,
Crown Prosecution Service ,12/12/22,Variable lease payment expenses IT and Equipment,Print Contract,Konica Minolta Business Solutions Limited,Bulk202210,"126,414.41",,
Crown Prosecution Service ,12/12/22,Recoverable VAT control,Balance Sheet,Konica Minolta Business Solutions Limited,Bulk202210,"25,282.88",Y,
Crown Prosecution Service ,12/12/22,IT services,DTS Programme Project Cost,Mobilise Cloud Services Limited London,CPSINV052,"34,149.76",Y,
Crown Prosecution Service ,12/12/22,IT services,DTS Programme Project Cost,CGI IT UK Ltd,GB014094305,"134,270.98",Y,
Crown Prosecution Service ,12/12/22,IT services,DTS Programme Project Cost,CGI IT UK Ltd,GB014094792,"32,814.88",Y,
Crown Prosecution Service ,12/12/22,IT services,Apps and Hosting Contract,CGI IT UK Ltd,GB014094926,"1,046,523.49",,
Crown Prosecution Service ,12/12/22,Recoverable VAT control,Balance Sheet,CGI IT UK Ltd,GB014094926,"209,304.70",Y,
Crown Prosecution Service ,12/12/22,IT services,DTS Programme Project Cost,eSynergy Solutions Ltd,INV00000911,"214,808.33",Y,
Crown Prosecution Service ,12/12/22,IT services,DTS Programme Project Cost,eSynergy Solutions Ltd,INV00000912,"49,620.00",Y,
Crown Prosecution Service ,12/12/22,IT services,DTS Programme Project Cost,eSynergy Solutions Ltd,INV00000913,"29,520.00",Y,
Crown Prosecution Service ,12/12/22,IT services,DTS Programme Project Cost,eSynergy Solutions Ltd,INV00000914,"52,800.00",Y,
Crown Prosecution Service ,12/12/22,IT services,DTS Programme Project Cost,eSynergy Solutions Ltd,INV00000918,"125,129.04",Y,
Crown Prosecution Service ,12/12/22,IT services,DTS Programme Project Cost,eSynergy Solutions Ltd,INV00000919,"46,167.30",Y,
Crown Prosecution Service ,12/12/22,IT services,DTS Programme Project Cost,ACS Systems UK Limited Northampton,INV425124,"96,798.84",Y,
Crown Prosecution Service ,12/12/22,IT services,DTS Programme Project Cost,ACS Systems UK Limited Northampton,INV425126,"110,043.00",Y,
Crown Prosecution Service ,13/12/22,Transcriptions and Translation,Other Corporate Programme Payments,Mendip Media Group Ltd Tiverton,0000000202,"29,023.00",,
Crown Prosecution Service ,13/12/22,Recoverable VAT control,Balance Sheet,Mendip Media Group Ltd Tiverton,0000000202,"5,804.60",Y,
Crown Prosecution Service ,13/12/22,Transcriptions and Translation,Other Corporate Programme Payments,Mendip Media Group Ltd Tiverton,0000000205,"30,022.00",,
Crown Prosecution Service ,13/12/22,Recoverable VAT control,Balance Sheet,Mendip Media Group Ltd Tiverton,0000000205,"6,004.40",Y,
Crown Prosecution Service ,13/12/22,Transcriptions and Translation,Other Corporate Programme Payments,Mendip Media Group Ltd Tiverton,0000000206,"26,721.00",,
Crown Prosecution Service ,13/12/22,Recoverable VAT control,Balance Sheet,Mendip Media Group Ltd Tiverton,0000000206,"5,344.20",Y,
Crown Prosecution Service ,13/12/22,Transcriptions and Translation,Other Corporate Programme Payments,Epiq Europe Ltd (Wordwave),0000001366,"21,102.00",,
Crown Prosecution Service ,13/12/22,Recoverable VAT control,Balance Sheet,Epiq Europe Ltd (Wordwave),0000001366,"4,220.40",Y,
Crown Prosecution Service ,13/12/22,Crown Court Graduated Fee Scheme,South West Complex Casework Unit,Guildhall Chambers Bristol,191582RS,"29,183.10",Y,
Crown Prosecution Service ,14/12/22,Crown Court Graduated Fee Scheme,SEOC Team 2,2 Harcourt Buildings,111225 JOJ TRIAL,"25,189.80",Y,
Crown Prosecution Service ,14/12/22,Crown Court Very High Cost Cases Full Scheme,North West RASSO Unit,St Pauls Chambers Leeds,167071 November,"32,549.78",Y,
Crown Prosecution Service ,14/12/22,Crown Court Very High Cost Cases Full Scheme,RWD Midlands Wales Unit,No 5 Fountain Court Chambers,786601/,"27,785.00",Y,
Crown Prosecution Service ,15/12/22,Crown Court Graduated Fee Scheme,Thames Chiltern Crown Court Unit,5 Paper Buildings,117130/MMKC,"26,591.76",Y,
Crown Prosecution Service ,15/12/22,Crown Court Very High Cost Cases Full Scheme,SEOC Team 1,Foundry Chambers (9-12 Bell Yard),198600/MC,"42,061.00",Y,
Crown Prosecution Service ,15/12/22,IT services,Estate and FM: Programme,Vodafone Ltd formerly Cable and Wireless Milton Keynes,4026522,"38,914.06",Y,
Crown Prosecution Service ,15/12/22,Crown Court Graduated Fee Scheme,London North Complex Casework Unit,QEB Hollis Whiteman Chambers,JE 110209,"81,436.20",Y,
Crown Prosecution Service ,15/12/22,Crown Court Very High Cost Cases Full Scheme,RWD North Unit,9 St John Street (Nine),NC-383207,"28,504.68",Y,
Crown Prosecution Service ,15/12/22,Legal Claims Provision utilised in the year,Balance Sheet,Government Legal Department,Z1903873-R1,"50,000.00",,
Crown Prosecution Service ,16/12/22,Crown Court Graduated Fee Scheme,London North Complex Casework Unit,6 Kings Bench Walk- Chambers of D Fisher & D Perry,102564 JH,"37,435.80",Y,
Crown Prosecution Service ,16/12/22,Crown Court Graduated Fee Scheme,London North Crown Court Unit,5 St Andrew's Hill,177945-1/DH,"27,625.80",Y,
Crown Prosecution Service ,16/12/22,Crown Court Graduated Fee Scheme,West Midlands Complex Casework Unit,St Philips Chambers,BW 684893,"30,824.40",Y,
Crown Prosecution Service ,16/12/22,Crown Court Graduated Fee Scheme,SEOC Team 2,2 Harcourt Buildings,JCA/116625,"25,641.60",Y,
Crown Prosecution Service ,16/12/22,Crown Court Graduated Fee Scheme,SEOC Team 2,2 Harcourt Buildings,MPA/116625,"38,267.40",Y,
Crown Prosecution Service ,19/12/22,Crown Court Graduated Fee Scheme,North West Complex Casework Unit,Harrington Street Chambers,1144521/IDW,"36,581.28",Y,
Crown Prosecution Service ,19/12/22,Data Communications,PSN Services Contract,Lumen Technologies UK Ltd,620595409/1120848,"26,769.93",Y,
Crown Prosecution Service ,19/12/22,Crown Court Very High Cost Cases Full Scheme,RWD Midlands Wales Unit,No 5 Fountain Court Chambers,786601/,"32,488.00",Y,
Crown Prosecution Service ,19/12/22,IT services,DTS Programme Project Cost,Xerox (UK) Ltd,900223132,"5,000.00",,
Crown Prosecution Service ,19/12/22,Short term leases from 2 to 12 months: IT and Equipment,Print Contract,Xerox (UK) Ltd,900223132,"39,381.17",,
Crown Prosecution Service ,19/12/22,Recoverable VAT control,Balance Sheet,Xerox (UK) Ltd,900223132,"8,876.24",Y,
Crown Prosecution Service ,19/12/22,Short term leases from 2 to 12 months: IT and Equipment,Print Contract,Xerox (UK) Ltd,900223850,"34,191.05",,
Crown Prosecution Service ,19/12/22,IT services,DTS Programme Project Cost,Xerox (UK) Ltd,900223850,"5,200.00",,
Crown Prosecution Service ,19/12/22,Recoverable VAT control,Balance Sheet,Xerox (UK) Ltd,900223850,"7,878.21",Y,
Crown Prosecution Service ,19/12/22,Other managed/contractor services,DTS Programme Project Cost,Equal Experts London,INV-11545,"126,870.00",Y,
Crown Prosecution Service ,19/12/22,Other managed/contractor services,DTS Programme Project Cost,Equal Experts London,INV-11546,"33,462.00",Y,
Crown Prosecution Service ,19/12/22,Salary sacrifice suspense,Balance Sheet,Edenred,INV27163004,"23,423.58",,
Crown Prosecution Service ,19/12/22,Other Staff Costs,CFO Finance Operations,Edenred,INV27163004,"1,726.34",,
Crown Prosecution Service ,20/12/22,Lease liability non current lease payments,Balance Sheet,Konica Minolta Business Solutions Limited,1163369500,"24,571.00",,
Crown Prosecution Service ,20/12/22,Recoverable VAT control,Balance Sheet,Konica Minolta Business Solutions Limited,1163369500,"4,914.20",Y,
Crown Prosecution Service ,20/12/22,Crown Court Very High Cost Cases Full Scheme,SEOC Team 2,23 Essex Street Chambers,176414-ALH-30.11,"25,218.90",Y,
Crown Prosecution Service ,20/12/22,Transcriptions and Translation,Other Corporate Programme Payments,AVR Transcription Ltd Bolton,OCT22-CPS,"55,911.64",,
Crown Prosecution Service ,20/12/22,Recoverable VAT control,Balance Sheet,AVR Transcription Ltd Bolton,OCT22-CPS,"11,182.33",Y,
Crown Prosecution Service ,21/12/22,Presentational Equipment,Mersey Cheshire Complex Casework Unit,Evidential Ltd Manchester,0000000701,"25,725.60",Y,
Crown Prosecution Service ,21/12/22,Crown Court Graduated Fee Scheme,North West Crown Court Hub,Harrington Street Chambers,1161703/AL,"29,373.00",Y,
Crown Prosecution Service ,21/12/22,Crown Court Graduated Fee Scheme,East of England Complex Casework Unit,Red Lion Chambers (18 RLC),164316MSC,"36,541.32",Y,
Crown Prosecution Service ,21/12/22,Crown Court Graduated Fee Scheme,East of England Crown Court,Red Lion Chambers (18 RLC),164708SS2ndtrial,"63,976.50",Y,
Crown Prosecution Service ,21/12/22,Crown Court Graduated Fee Scheme,South West Complex Casework Unit,Guildhall Chambers Bristol,194408RayKC,"47,354.46",Y,
Crown Prosecution Service ,21/12/22,Admin agency staff,DID DTS Change,Alexander Mann Solutions Ltd London,2695721,"30,365.44",Y,
Crown Prosecution Service ,21/12/22,Conference Organisation,Private Office,Calder Communications Ltd Leeds,457543,"26,646.47",Y,
Crown Prosecution Service ,21/12/22,Crown Court Very High Cost Cases Full Scheme,RWD North Unit,Exchange Chambers Leeds ,535033 - AHQC NOV,"31,653.58",Y,
Crown Prosecution Service ,21/12/22,Crown Court Graduated Fee Scheme,London North Complex Casework Unit,5 King's Bench Walk,CNKC175967,"27,154.20",Y,
Crown Prosecution Service ,21/12/22,Intangibles asset purchase clearing CMS,DTS ICT Capital Expenditure,CGI IT UK Ltd,GB014094378,"22,137.13",,
Crown Prosecution Service ,21/12/22,Recoverable VAT control,Balance Sheet,CGI IT UK Ltd,GB014094378,"4,427.43",Y,
Crown Prosecution Service ,21/12/22,Intangibles asset purchase clearing CMS,DTS ICT Capital Expenditure,CGI IT UK Ltd,GB014095593,"938,235.54",,
Crown Prosecution Service ,21/12/22,Recoverable VAT control,Balance Sheet,CGI IT UK Ltd,GB014095593,"187,647.11",Y,
Crown Prosecution Service ,21/12/22,IT non capital equipment and consumables,DTS Programme Project Cost,ACS Systems UK Limited Northampton,INV425038,"85,972.01",Y,
Crown Prosecution Service ,22/12/22,Crown Court Graduated Fee Scheme,North East Crown Court Unit,Fountain Chambers,118590,"43,181.88",Y,
Crown Prosecution Service ,22/12/22,Crown Court Graduated Fee Scheme,North East Crown Court Unit,Fountain Chambers,118590,"34,568.76",Y,
Crown Prosecution Service ,22/12/22,Crown Court Graduated Fee Scheme,West Midlands Complex Casework Unit,Nine Bedford Row (9 Bedford Row),333863-4/PG jf,"27,844.50",Y,
Crown Prosecution Service ,22/12/22,IT services,ICT Network Services,Vodafone Ltd formerly Cable and Wireless Milton Keynes,4026851,"69,017.03",Y,
Crown Prosecution Service ,22/12/22,IT services,ICT Network Services,Vodafone Ltd formerly Cable and Wireless Milton Keynes,4026852,"56,101.19",Y,
Crown Prosecution Service ,22/12/22,IT services,ICT Network Services,Vodafone Ltd formerly Cable and Wireless Milton Keynes,4026853,"26,076.84",Y,
Crown Prosecution Service ,22/12/22,IT services,ICT Network Services,Vodafone Ltd formerly Cable and Wireless Milton Keynes,4026857,"23,470.17",,
Crown Prosecution Service ,22/12/22,Recoverable VAT control,Balance Sheet,Vodafone Ltd formerly Cable and Wireless Milton Keynes,4026857,"4,694.03",Y,
Crown Prosecution Service ,22/12/22,Crown Court Graduated Fee Scheme,Special Crime Unit York,No 5 Fountain Court Chambers,807530/,"39,101.70",Y,
Crown Prosecution Service ,22/12/22,General Professional Services,Strategy and Policy,Equally Ours London,EO1423,"29,500.00",,
Crown Prosecution Service ,22/12/22,IT services,DTS Programme Project Cost,CGI IT UK Ltd,GB014095664,"209,056.12",Y,
Crown Prosecution Service ,22/12/22,IT services,DTS Programme Project Cost,CGI IT UK Ltd,GB014095717,"60,971.76",Y,
Crown Prosecution Service ,22/12/22,IT services,DTS Programme Project Cost,CGI IT UK Ltd,GB014095718,"145,369.52",Y,
Crown Prosecution Service ,22/12/22,IT services,DTS Programme Project Cost,CGI IT UK Ltd,GB014095746,"81,715.70",Y,
Crown Prosecution Service ,22/12/22,Crown Court Graduated Fee Scheme,East Midlands Complex Casework Unit,Seven Bedford Row,2,"81,214.50",Y,
Crown Prosecution Service ,22/12/22,Crown Court Graduated Fee Scheme,London South Complex Casework Unit,5 King's Bench Walk,WD170765,"27,702.36",Y,
Crown Prosecution Service ,28/12/22,Advice/PreSending Very High Cost Cases Full Scheme,Mersey Cheshire Complex Casework Unit,Harrington Street Chambers,1096572/NJS35,"41,161.84",Y,
Crown Prosecution Service ,28/12/22,Crown Court Very High Cost Cases Full Scheme,Yorkshire and Humberside Complex Casework Unit,Kings Bench Walk Leeds,118002-DBKC-STAGE 8,"42,624.00",Y,
Crown Prosecution Service ,28/12/22,Crown Court Very High Cost Cases Full Scheme,Yorkshire and Humberside Complex Casework Unit,Kings Bench Walk Leeds,118002-RD-STAGE 8,"30,250.00",Y,
Crown Prosecution Service ,28/12/22,Crown Court Graduated Fee Scheme,London South Complex Casework Unit,Foundry Chambers (9-12 Bell Yard),188746/BWA - 1,"51,869.46",Y,
Crown Prosecution Service ,28/12/22,Crown Court Very High Cost Cases Full Scheme,East Midlands Complex Casework Unit,36 Bedford Row,215623/JEC-STAGE1,"33,610.00",Y,
Crown Prosecution Service ,28/12/22,Crown Court Graduated Fee Scheme,London North RASSO,Rose Court Chambers Limited,224,"49,854.60",Y,
Crown Prosecution Service ,28/12/22,Data Communications,DTS Programme Project Cost,Vodafone Ltd formerly Cable and Wireless Milton Keynes,4026360,"246,318.70",Y,
Crown Prosecution Service ,28/12/22,Data Communications,DTS Programme Project Cost,Vodafone Ltd formerly Cable and Wireless Milton Keynes,4026361,"307,898.38",Y,
Crown Prosecution Service ,28/12/22,IT services,End User Computing Contract,WIPRO Holdings London,5000186778,"106,626.50",,
Crown Prosecution Service ,28/12/22,Recoverable VAT control,Balance Sheet,WIPRO Holdings London,5000186778,"21,325.30",Y,
Crown Prosecution Service ,28/12/22,External legal advice - HR casework,PF Litigation,Government Legal Department,520264,"64,946.82",Y,
Crown Prosecution Service ,28/12/22,Recoverable VAT control,Balance Sheet,Lumen Technologies UK Ltd,620033032/1120277,"11,048.20",Y,
Crown Prosecution Service ,28/12/22,IT services,PSN Connectivity Contract,Lumen Technologies UK Ltd,620033032/1120277,"55,241.00",,
Crown Prosecution Service ,28/12/22,Crown Court Graduated Fee Scheme,London North Complex Casework Unit,5 King's Bench Walk,AOKC 175717,"81,852.60",Y,
Crown Prosecution Service ,28/12/22,Crown Court Graduated Fee Scheme,London South Crown Court Unit,9 Kings Bench Walk,DJC47461Trial,"40,810.20",Y,
Crown Prosecution Service ,28/12/22,IT services,Service Desk Contract,CGI IT UK Ltd,GB014095549,"101,959.54",,
Crown Prosecution Service ,28/12/22,Recoverable VAT control,Balance Sheet,CGI IT UK Ltd,GB014095549,"20,391.91",Y,
Crown Prosecution Service ,28/12/22,IT services,DTS Programme Project Cost,FlyForm LTD Cardiff,INV-11124,"24,395.99",,
Crown Prosecution Service ,28/12/22,Recoverable VAT control,Balance Sheet,FlyForm LTD Cardiff,INV-11124,"4,879.21",Y,
Crown Prosecution Service ,28/12/22,IT services,DTS Programme Project Cost,FlyForm LTD Cardiff,INV-11130,"47,036.40",Y,
Crown Prosecution Service ,28/12/22,Crown Court Graduated Fee Scheme,London North Complex Casework Unit,2 Harcourt Buildings,JD/117042,"36,507.00",Y,
Crown Prosecution Service ,28/12/22,Crown Court Graduated Fee Scheme,Cymru Wales North Crown Court,Exchange Chambers - Liverpool,LINENHALL 320352 GC,"35,177.70",Y,
Crown Prosecution Service ,28/12/22,Crown Court Very High Cost Cases Full Scheme,RWD North Unit,9 St John Street (Nine),NC   N133934,"25,726.17",Y,
Crown Prosecution Service ,28/12/22,Crown Court Graduated Fee Scheme,London South Crown Court Unit,9 Kings Bench Walk,SF47461Trial,"27,458.40",Y,
Crown Prosecution Service ,28/12/22,General Professional Services,IAP Conference,Bray Leino Ltd Devon,SI0035721BLE,"38,616.60",Y,
Crown Prosecution Service ,29/12/22,Crown Court Graduated Fee Scheme,North West Complex Casework Unit,Harrington Street Chambers,1144521/WBR,"50,671.32",Y,
Crown Prosecution Service ,29/12/22,Crown Court Graduated Fee Scheme,North West Crown Court Hub,Deans Court Chambers,459771RSB(4),"28,477.80",Y,
Crown Prosecution Service ,29/12/22,Crown Court Graduated Fee Scheme,London North Complex Casework Unit,QEB Hollis Whiteman Chambers,PE 111459,"25,413.00",Y,
Crown Prosecution Service ,29/12/22,Crown Court Graduated Fee Scheme,London North Crown Court Unit,QEB Hollis Whiteman Chambers,rs 109711,"46,860.60",Y,
Crown Prosecution Service ,04/01/23,Crown Court Graduated Fee Scheme,North East Crown Court Unit,Fountain Chambers,120437,"27,030.30",Y,
Crown Prosecution Service ,04/01/23,FCO platform charges excluding leases,Intl External Funding,"Foreign, Commonwealth and Development Office",20002510,"9,100.00",,
Crown Prosecution Service ,04/01/23,FCO platform charges excluding leases,Intl External Funding,"Foreign, Commonwealth and Development Office",20002510,"5,125.00",,
Crown Prosecution Service ,04/01/23,FCO platform charges excluding leases,Intl Liaison Prosecutors,"Foreign, Commonwealth and Development Office",20002510,"11,775.00",,
Crown Prosecution Service ,04/01/23,FCO platform charges excluding leases,Intl External Funding,"Foreign, Commonwealth and Development Office",20002510,"9,200.00",,
Crown Prosecution Service ,04/01/23,Overseas Residential accommodation,Intl External Funding,"Foreign, Commonwealth and Development Office",20002510,"4,900.25",,
Crown Prosecution Service ,04/01/23,FCO platform charges excluding leases,Intl Internal Funding,"Foreign, Commonwealth and Development Office",20002510,"48,763.25",,
Crown Prosecution Service ,04/01/23,FCO platform charges excluding leases,Intl External Funding,"Foreign, Commonwealth and Development Office",20002510,"10,350.00",,
Crown Prosecution Service ,04/01/23,FCO platform charges excluding leases,Intl Liaison Prosecutors,"Foreign, Commonwealth and Development Office",20002510,130.50,,
Crown Prosecution Service ,04/01/23,Overseas Residential accommodation,Intl External Funding,"Foreign, Commonwealth and Development Office",20002510,"4,890.75",,
Crown Prosecution Service ,04/01/23,Overseas Residential accommodation,Intl Liaison Prosecutors,"Foreign, Commonwealth and Development Office",20002510,"6,700.00",,
Crown Prosecution Service ,04/01/23,FCO platform charges excluding leases,Intl External Funding,"Foreign, Commonwealth and Development Office",20002510,"5,625.00",,
Crown Prosecution Service ,04/01/23,FCO platform charges excluding leases,Intl Liaison Prosecutors,"Foreign, Commonwealth and Development Office",20002510,"6,000.00",,
Crown Prosecution Service ,04/01/23,Overseas Residential accommodation,Intl Liaison Prosecutors,"Foreign, Commonwealth and Development Office",20002510,"4,934.75",,
Crown Prosecution Service ,04/01/23,Overseas Residential accommodation,Intl Liaison Prosecutors,"Foreign, Commonwealth and Development Office",20002510,"13,725.00",,
Crown Prosecution Service ,04/01/23,FCO platform charges excluding leases,Intl Liaison Prosecutors,"Foreign, Commonwealth and Development Office",20002510,969.00,,
Crown Prosecution Service ,04/01/23,FCO platform charges excluding leases,Intl External Funding,"Foreign, Commonwealth and Development Office",20002510,"6,888.50",,
Crown Prosecution Service ,04/01/23,Overseas Residential accommodation,Intl External Funding,"Foreign, Commonwealth and Development Office",20002510,"7,125.00",,
Crown Prosecution Service ,04/01/23,FCO platform charges excluding leases,Intl Liaison Prosecutors,"Foreign, Commonwealth and Development Office",20002510,"20,246.50",,
Crown Prosecution Service ,04/01/23,FCO platform charges excluding leases,Intl Liaison Prosecutors,"Foreign, Commonwealth and Development Office",20002510,"14,400.00",,
Crown Prosecution Service ,04/01/23,FCO platform charges excluding leases,Intl External Funding,"Foreign, Commonwealth and Development Office",20002510,"9,750.00",,
Crown Prosecution Service ,04/01/23,Overseas Residential accommodation,Intl External Funding,"Foreign, Commonwealth and Development Office",20002510,"4,907.75",,
Crown Prosecution Service ,04/01/23,Overseas Residential accommodation,Intl External Funding,"Foreign, Commonwealth and Development Office",20002510,"4,800.00",,
Crown Prosecution Service ,04/01/23,Overseas Residential accommodation,Intl Liaison Prosecutors,"Foreign, Commonwealth and Development Office",20002510,"9,575.00",,
Crown Prosecution Service ,04/01/23,Overseas Residential accommodation,Intl External Funding,"Foreign, Commonwealth and Development Office",20002510,"6,375.00",,
Crown Prosecution Service ,04/01/23,FCO platform charges excluding leases,Intl External Funding,"Foreign, Commonwealth and Development Office",20002510,"7,325.00",,
Crown Prosecution Service ,04/01/23,Overseas Residential accommodation,Intl External Funding,"Foreign, Commonwealth and Development Office",20002510,"5,575.00",,
Crown Prosecution Service ,04/01/23,Overseas Residential accommodation,Intl External Funding,"Foreign, Commonwealth and Development Office",20002510,"5,750.00",,
Crown Prosecution Service ,04/01/23,Overseas Residential accommodation,Intl Liaison Prosecutors,"Foreign, Commonwealth and Development Office",20002510,"11,575.00",,
Crown Prosecution Service ,04/01/23,FCO platform charges excluding leases,Intl External Funding,"Foreign, Commonwealth and Development Office",20002510,"16,400.00",,
Crown Prosecution Service ,04/01/23,Overseas Residential accommodation,Intl Internal Funding,"Foreign, Commonwealth and Development Office",20002510,"7,543.50",,
Crown Prosecution Service ,04/01/23,Overseas Residential accommodation,Intl Liaison Prosecutors,"Foreign, Commonwealth and Development Office",20002510,"12,079.11",,
Crown Prosecution Service ,04/01/23,Overseas Residential accommodation,Intl External Funding,"Foreign, Commonwealth and Development Office",20002510,"4,600.00",,
Crown Prosecution Service ,04/01/23,FCO platform charges excluding leases,Intl Liaison Prosecutors,"Foreign, Commonwealth and Development Office",20002510,"10,286.50",,
Crown Prosecution Service ,04/01/23,Internal Training,PF Prosecution College,Lumesse Limited Luton,2023-0016-UK,"60,370.70",Y,
Crown Prosecution Service ,04/01/23,Crown Court Very High Cost Cases Full Scheme,North West Complex Casework Unit,Dere Street Barristers,373007 JE4,"33,366.60",Y,
Crown Prosecution Service ,04/01/23,Apprenticeship Levy payments Permanent,Other Corporate Admin Payments,HM Revenue and Customs,948PB000021422309,"7,675.08",,
Crown Prosecution Service ,04/01/23,Apprenticeship Levy payments Permanent,Other Corporate Programme Payments,HM Revenue and Customs,948PB000021422309,"120,242.92",,
Crown Prosecution Service ,04/01/23,Recoverable VAT control,Balance Sheet,Ernst & Young LLP London,GB01G000361946,"5,600.00",Y,
Crown Prosecution Service ,04/01/23,External Training,DID Security and Information,Ernst & Young LLP London,GB01G000361946,"28,000.00",,
Crown Prosecution Service ,04/01/23,Crown Court Graduated Fee Scheme,London North Complex Casework Unit,3 Raymond Buildings,HD/249639,"51,797.40",Y,
Crown Prosecution Service ,04/01/23,Crown Court Graduated Fee Scheme,London North Complex Casework Unit,3 Raymond Buildings,LPE/249639/4,"26,413.20",Y,
Crown Prosecution Service ,04/01/23,Crown Court Graduated Fee Scheme,London North Complex Casework Unit,3 Raymond Buildings,WEJ/251642,"87,197.40",Y,
Crown Prosecution Service ,05/01/23,IT non capital software licences,Legal Reference and ICT Licenses,Trustmarque Solutions Ltd,2354711,"69,996.43",Y,
Crown Prosecution Service ,06/01/23,Crown Court Very High Cost Cases Full Scheme,East Midlands Complex Casework Unit,36 Bedford Row,215623-JEC Stage 2,"36,104.00",Y,
